fUST/lending_fUST_20250723
["ID","MTS","AMOUNT","RATE_DAILY","PERIOD"]
[374122042,1753213845761,-460.0,0.00017912,2]
[374122043,1753213845771,-1184.94,0.00017912,2]
[374122044,1753213845781,-460.0,0.00017912,2]
[374122045,1753213845791,-460.0,0.00017912,2]
[374122046,1753213845802,-460.0,0.00017912,2]
[374122048,1753213845812,-460.0,0.00017912,2]
[374122049,1753213845822,-1196.81,0.00017912,2]
[374122050,1753213845831,-409.46216117,0.00017912,2]
[374122051,1753213845840,-460.0,0.00017912,2]
[374122052,1753213845850,-460.0,0.00017912,2]
[374122053,1753213845859,-2821.8,0.00017912,2]
[374122054,1753213845869,-703.3,0.00017912,2]
[374122055,1753213845879,-373.84,0.00017912,2]
[374122056,1753213845888,-460.0,0.00017912,2]
[374122057,1753213845898,-460.0,0.00017912,2]
[374122058,1753213845911,-460.0,0.00017912,2]
[374122059,1753213845921,-1386.55,0.00017912,2]
[374122060,1753213845930,-460.0,0.00017912,2]
[374122061,1753213845939,-460.0,0.00017912,2]
[374122062,1753213845952,-460.0,0.00017912,2]
[374122063,1753213845962,-460.0,0.00017912,2]
[374122064,1753213845972,-460.0,0.00017912,2]
[374122065,1753213845982,-460.0,0.00017912,2]
[374122066,1753213845992,-460.0,0.00017912,2]
[374122067,1753213846001,-460.0,0.00017912,2]
[374122069,1753213846010,-460.0,0.00017912,2]
[374122070,1753213846021,-460.0,0.00017912,2]
[374122071,1753213846032,-460.0,0.00017912,2]
[374122072,1753213846041,-460.0,0.00017912,2]
[374122073,1753213846051,-460.0,0.00017912,2]
[374122074,1753213846060,-460.0,0.00017912,2]
[374122076,1753213846070,-498.02,0.00017913,2]
[374122078,1753213846080,-460.0,0.00017913,2]
[374122080,1753213846089,-460.0,0.00017913,2]
[374122081,1753213846099,-460.0,0.00017913,2]
[374122082,1753213846108,-460.0,0.00017913,2]
[374122083,1753213846117,-460.0,0.00017913,2]
[374122084,1753213846127,-460.0,0.00017913,2]
[374122085,1753213846136,-460.0,0.00017913,2]
[374122086,1753213846145,-460.0,0.00017913,2]
[374122087,1753213846154,-460.0,0.00017913,2]
[374122089,1753213846164,-460.0,0.00017913,2]
[374122090,1753213846252,-460.0,0.00017913,2]
[374122091,1753213846262,-460.0,0.00017913,2]
[374122092,1753213846271,-460.0,0.00017913,2]
[374122093,1753213846280,-460.0,0.00017913,2]
[374122094,1753213846290,-460.0,0.00017913,2]
[374122095,1753213846299,-460.0,0.00017913,2]
[374122097,1753213846309,-460.0,0.00017913,2]
[374122099,1753213846318,-460.0,0.00017913,2]
[374122100,1753213846328,-460.0,0.00017913,2]
[374122101,1753213846337,-460.0,0.00017913,2]
[374122102,1753213846346,-460.0,0.00017913,2]
[374122103,1753213846356,-831.12,0.00017913,2]
[374122104,1753213846366,-460.0,0.00017914,2]
[374122105,1753213846376,-460.0,0.00017914,2]
[374122106,1753213846385,-460.0,0.00017914,2]
[374122107,1753213846395,-544.79,0.00017914,2]
[374122108,1753213846404,-460.0,0.00017914,2]
[374122109,1753213846413,-1215.2,0.00017914,2]
[374122110,1753213846423,-1288.79,0.00017914,2]
[374122111,1753213846433,-217.98,0.00017914,2]
[374122112,1753213846442,-608.33,0.00017914,2]
[374122113,1753213846453,-1247.68,0.00017914,2]
[374122114,1753213846462,-460.0,0.00017914,2]
[374122115,1753213846472,-1243.93,0.00017915,2]
[374122116,1753213846481,-780.38,0.00017915,2]
[374122117,1753213846491,-460.0,0.00017915,2]
[374122119,1753213846501,-642.18,0.00017915,2]
[374122121,1753213846511,-460.0,0.00017915,2]
[374122123,1753213846520,-943.84,0.00017915,2]
[374122125,1753213846530,-460.0,0.00017915,2]
[374122126,1753213846540,-460.0,0.00017916,2]
[374122127,1753213846553,-460.0,0.00017916,2]
[374122128,1753213846563,-287.57565052,0.00018068,2]
[374122129,1753213846573,-1462.58568232,0.00018068,2]
[374122130,1753213846582,-225.68932087,0.00018068,2]
[374122131,1753213846592,-462.83992777,0.00018068,2]
[374122132,1753213846601,-1500.0,0.00018068,2]
[374122133,1753213846611,-1500.0,0.00018068,2]
[374122134,1753213846620,-1527.67292443,0.00018068,2]
[374122135,1753213846630,-500.0,0.00018141,2]
[374122136,1753213846640,-500.0,0.00018141,2]
[374122137,1753213846650,-500.0,0.00018141,2]
[374122138,1753213846659,-500.0,0.00018141,2]
[374122139,1753213846668,-500.0,0.00018141,2]
[374122140,1753213846678,-500.0,0.00018141,2]
[374122141,1753213846687,-500.0,0.00018141,2]
[374122142,1753213846700,-500.0,0.00018141,2]
[374122143,1753213846710,-622.74603772,0.00018141,2]
[374122144,1753213846719,-2980.03897535,0.00018141,2]
[374122145,1753213846729,-1500.0,0.00018168,2]
[374122146,1753213846739,-1500.0,0.00018168,2]
[374122147,1753213846748,-1500.0,0.00018168,2]
[374122148,1753213846758,-1500.0,0.00018168,2]
[374122149,1753213846767,-460.0,0.00018185,2]
[374122150,1753213846777,-460.0,0.00018185,2]
[374122151,1753213846787,-1096.09,0.00018185,2]
[374122152,1753213846796,-460.0,0.00018186,2]
[374122153,1753213846805,-460.0,0.00018186,2]
[374122154,1753213846815,-460.0,0.00018186,2]
[374122155,1753213846824,-460.0,0.00018186,2]
[374122156,1753213846833,-460.0,0.00018186,2]
[374122157,1753213846849,-460.0,0.00018186,2]
[374122158,1753213846863,-460.0,0.00018186,2]
[374122159,1753213846873,-460.0,0.00018186,2]
[374122160,1753213846883,-1184.94,0.00018186,2]
[374122161,1753213846893,-460.0,0.00018186,2]
[374122162,1753213846905,-460.0,0.00018186,2]
[374122163,1753213846915,-460.0,0.00018186,2]
[374122164,1753213846926,-460.0,0.00018186,2]
[374122165,1753213846936,-1196.81,0.00018186,2]
[374122166,1753213846949,-460.0,0.00018186,2]
[374122167,1753213846959,-460.0,0.00018186,2]
[374122168,1753213846968,-2821.8,0.00018186,2]
[374122169,1753213846978,-703.3,0.00018186,2]
[374122170,1753213846988,-460.0,0.00018186,2]
[374122171,1753213846998,-460.0,0.00018186,2]
[374122172,1753213847008,-1386.55,0.00018186,2]
[374122173,1753213847017,-460.0,0.00018186,2]
[374122174,1753213847027,-460.0,0.00018186,2]
[374122175,1753213847036,-460.0,0.00018186,2]
[374122176,1753213847046,-196.94,0.00018186,2]
[374122177,1753213847056,-460.0,0.00018186,2]
[374122178,1753213847066,-151.18,0.00018186,2]
[374122179,1753213847076,-460.0,0.00018186,2]
[374122180,1753213847085,-460.0,0.00018186,2]
[374122181,1753213847095,-460.0,0.00018186,2]
[374122182,1753213847104,-460.0,0.00018186,2]
[374122183,1753213847114,-460.0,0.00018186,2]
[374122184,1753213847124,-460.0,0.00018186,2]
[374122185,1753213847142,-460.0,0.00018186,2]
[374122186,1753213847160,-460.0,0.00018186,2]
[374122187,1753213847177,-241.13,0.00018187,2]
[374122188,1753213847190,-460.0,0.00018187,2]
[374122189,1753213847207,-460.0,0.00018187,2]
[374122190,1753213847222,-207.31938781,0.00018187,2]
[374122191,1753213847237,-460.0,0.00018187,2]
[374122192,1753213847251,-557.74,0.00018187,2]
[374122193,1753213847265,-460.0,0.00018187,2]
[374122194,1753213847280,-460.0,0.00018187,2]
[374122195,1753213847295,-460.0,0.00018187,2]
[374122196,1753213847310,-460.0,0.00018187,2]
[374122197,1753213847326,-460.0,0.00018187,2]
[374122198,1753213847341,-460.0,0.00018187,2]
[374122199,1753213847356,-460.0,0.00018187,2]
[374122200,1753213847370,-460.0,0.00018187,2]
[374122201,1753213847383,-473.53311904,0.00018187,2]
[374122202,1753213847395,-460.0,0.00018187,2]
[374122203,1753213847408,-460.0,0.00018187,2]
[374122204,1753213847422,-460.0,0.00018187,2]
[374122205,1753213847436,-460.0,0.00018187,2]
[374122206,1753213847456,-460.0,0.00018187,2]
[374122207,1753213847470,-460.0,0.00018187,2]
[374122208,1753213847486,-831.12,0.00018187,2]
[374122209,1753213847500,-460.0,0.00018188,2]
[374122210,1753213847511,-460.0,0.00018188,2]
[374122211,1753213847522,-460.0,0.00018188,2]
[374122212,1753213847533,-1215.2,0.00018188,2]
[374122213,1753213847547,-1288.79,0.00018188,2]
[374122214,1753213847569,-608.33,0.00018188,2]
[374122215,1753213847581,-1247.68,0.00018188,2]
[374122216,1753213847592,-460.0,0.00018188,2]
[374122217,1753213847604,-1243.93,0.00018189,2]
[374122218,1753213847619,-780.38,0.00018189,2]
[374122219,1753213847630,-460.0,0.00018189,2]
[374122220,1753213847642,-642.18,0.00018189,2]
[374122221,1753213847654,-460.0,0.00018189,2]
[374122222,1753213847667,-943.84,0.00018189,2]
[374122223,1753213847681,-460.0,0.0001819,2]
[374122224,1753213847693,-560.16,0.0001819,2]
[374122225,1753213847709,-948.88989156,0.0001823,2]
[374122226,1753213847722,-160.0,0.0001825,2]
[374122227,1753213847734,-806.04,0.00018351,3]
[374122228,1753213847746,-403.02,0.00018351,3]
[374122229,1753213847759,-251.0,0.00018368,2]
[374122230,1753213847771,-2980.03897535,0.00018452,2]
[374122231,1753213847783,-398.44,0.00018459,2]
[374122232,1753213847796,-554.82,0.00018459,2]
[374122233,1753213847808,-1096.09,0.00018459,2]
[374122234,1753213847819,-460.0,0.0001846,2]
[374122235,1753213847831,-286.62,0.0001846,2]
[374122236,1753213847844,-460.0,0.0001846,2]
[374122237,1753213847855,-460.0,0.0001846,2]
[374122238,1753213847868,-460.0,0.0001846,2]
[374122239,1753213847883,-460.0,0.0001846,2]
[374122240,1753213847895,-510.5164524,0.0001846,2]
[374122241,1753213847909,-460.0,0.0001846,2]
[374122242,1753213847921,-1184.94,0.0001846,2]
[374122243,1753213847933,-460.0,0.0001846,2]
[374122244,1753213847947,-460.0,0.0001846,2]
[374122245,1753213847959,-460.0,0.0001846,2]
[374122246,1753213847970,-460.0,0.0001846,2]
[374122247,1753213847986,-1196.81,0.0001846,2]
[374122248,1753213847998,-460.0,0.0001846,2]
[374122249,1753213848010,-460.0,0.0001846,2]
[374122250,1753213848022,-2821.8,0.0001846,2]
[374122251,1753213848034,-703.3,0.0001846,2]
[374122252,1753213848046,-460.0,0.0001846,2]
[374122253,1753213848058,-264.41632605,0.0001846,2]
[374122254,1753213848072,-1386.55,0.0001846,2]
[374122255,1753213848084,-460.0,0.0001846,2]
[374122256,1753213848096,-460.0,0.0001846,2]
[374122257,1753213848108,-460.0,0.0001846,2]
[374122258,1753213848120,-460.0,0.0001846,2]
[374122259,1753213848132,-1680.0,0.0001846,2]
[374122260,1753213848143,-478.8,0.0001846,2]
[374122261,1753213848156,-460.0,0.0001846,2]
[374122262,1753213848169,-460.0,0.0001846,2]
[374122263,1753213848181,-460.0,0.0001846,2]
[374122264,1753213848191,-460.0,0.0001846,2]
[374122265,1753213848203,-460.0,0.0001846,2]
[374122266,1753213848212,-460.0,0.0001846,2]
[374122267,1753213848222,-221.35,0.0001846,2]
[374122268,1753213848233,-460.0,0.00018461,2]
[374122269,1753213848243,-460.0,0.00018461,2]
[374122270,1753213848254,-460.0,0.00018461,2]
[374122271,1753213848263,-460.0,0.00018461,2]
[374122272,1753213848424,-460.0,0.00018461,2]
[374122273,1753213848435,-520.54163889,0.00018461,2]
[374122274,1753213848445,-460.0,0.00018461,2]
[374122275,1753213848459,-460.0,0.00018461,2]
[374122276,1753213848470,-460.0,0.00018461,2]
[374122277,1753213848480,-460.0,0.00018461,2]
[374122278,1753213848490,-460.0,0.00018461,2]
[374122279,1753213848500,-460.0,0.00018461,2]
[374122280,1753213848511,-460.0,0.00018461,2]
[374122281,1753213848522,-460.0,0.00018461,2]
[374122282,1753213848533,-460.0,0.00018461,2]
[374122283,1753213848543,-831.12,0.00018461,2]
[374122284,1753213848553,-460.0,0.00018462,2]
[374122285,1753213848563,-460.0,0.00018462,2]
[374122286,1753213848573,-228.73,0.00018462,2]
[374122287,1753213848583,-1215.2,0.00018462,2]
[374122288,1753213848594,-1288.79,0.00018462,2]
[374122289,1753213848603,-1247.68,0.00018462,2]
[374122290,1753213848613,-460.0,0.00018462,2]
[374122291,1753213848623,-1243.93,0.00018463,2]
[374122292,1753213848633,-780.38,0.00018463,2]
[374122293,1753213848643,-460.0,0.00018463,2]
[374122294,1753213848653,-642.18,0.00018463,2]
[374122295,1753213848663,-460.0,0.00018463,2]
[374122296,1753213848673,-943.84,0.00018463,2]
[374122297,1753213848683,-2000.0,0.00018616,2]
[374122298,1753213848693,-2000.0,0.00018616,2]
[374122299,1753213848709,-1000.0,0.00018689,2]
[374122300,1753213848719,-1000.0,0.00018689,2]
[374122301,1753213848739,-2000.0,0.00018716,2]
[374122302,1753213848751,-2000.0,0.00018716,2]
[374122303,1753213848762,-2000.0,0.00018716,2]
[374122304,1753213848773,-2000.0,0.00018716,2]
[374122305,1753213848783,-1096.09,0.00018733,2]
[374122306,1753213848792,-460.0,0.00018734,2]
[374122307,1753213848803,-345.1,0.00018734,2]
[374122308,1753213848812,-460.0,0.00018734,2]
[374122309,1753213848822,-293.18,0.00018734,2]
[374122310,1753213848832,-460.0,0.00018734,2]
[374122311,1753213848842,-460.0,0.00018734,2]
[374122312,1753213848852,-1184.94,0.00018734,2]
[374122313,1753213848862,-460.0,0.00018734,2]
[374122314,1753213848872,-460.0,0.00018734,2]
[374122315,1753213848882,-376.76,0.00018734,2]
[374122316,1753213848892,-460.0,0.00018734,2]
[374122317,1753213848906,-1196.81,0.00018734,2]
[374122318,1753213848916,-460.0,0.00018734,2]
[374122319,1753213848927,-319.1,0.00018734,2]
[374122320,1753213848937,-2821.8,0.00018734,2]
[374122321,1753213848948,-703.3,0.00018734,2]
[374122322,1753213848961,-460.0,0.00018734,2]
[374122323,1753213848971,-1386.55,0.00018734,2]
[374122324,1753213848982,-460.0,0.00018734,2]
[374122325,1753213848995,-460.0,0.00018734,2]
[374122326,1753213849005,-460.0,0.00018734,2]
[374122327,1753213849015,-460.0,0.00018734,2]
[374122328,1753213849026,-200.32,0.00018734,2]
[374122329,1753213849036,-460.0,0.00018734,2]
[374122330,1753213849046,-320.37891063,0.00018734,2]
[374122331,1753213849056,-460.0,0.00018734,2]
[374122332,1753213849067,-460.0,0.00018734,2]
[374122333,1753213849078,-460.0,0.00018735,2]
[374122334,1753213849089,-460.0,0.00018735,2]
[374122335,1753213849099,-460.0,0.00018735,2]
[374122336,1753213849109,-460.0,0.00018735,2]
[374122337,1753213849120,-460.0,0.00018735,2]
[374122338,1753213849130,-460.0,0.00018735,2]
[374122339,1753213849140,-460.0,0.00018735,2]
[374122340,1753213849150,-588.72,0.00018735,2]
[374122341,1753213849160,-191.49,0.00018735,2]
[374122342,1753213849170,-460.0,0.00018735,2]
[374122343,1753213849184,-263.01,0.00018735,2]
[374122344,1753213849204,-460.0,0.00018735,2]
[374122345,1753213849214,-460.0,0.00018735,2]
[374122346,1753213849224,-831.12,0.00018735,2]
[374122347,1753213849234,-1215.2,0.00018736,2]
[374122348,1753213849245,-1288.79,0.00018736,2]
[374122349,1753213849255,-1247.68,0.00018736,2]
[374122350,1753213849265,-460.0,0.00018736,2]
[374122351,1753213849275,-1243.93,0.00018737,2]
[374122352,1753213849285,-780.38,0.00018737,2]
[374122353,1753213849295,-460.0,0.00018737,2]
[374122354,1753213849304,-642.18,0.00018737,2]
[374122355,1753213849314,-460.0,0.00018737,2]
[374122356,1753213849324,-943.84,0.00018737,2]
[374122357,1753213849334,-2980.03897535,0.00018762,2]
[374122358,1753213849344,-260.0,0.00018798,2]
[374122359,1753213849354,-2357.2772953,0.000189,2]
[374122360,1753213849364,-1096.09,0.00019007,2]
[374122361,1753213849374,-460.0,0.00019008,2]
[374122362,1753213849384,-460.0,0.00019008,2]
[374122363,1753213849394,-460.0,0.00019008,2]
[374122364,1753213849404,-1184.94,0.00019008,2]
[374122365,1753213849414,-534.22,0.00019008,2]
[374122366,1753213849423,-460.0,0.00019008,2]
[374122367,1753213849433,-171.98,0.00019008,2]
[374122368,1753213849443,-1196.81,0.00019008,2]
[374122369,1753213849458,-460.0,0.00019008,2]
[374122370,1753213849467,-2821.8,0.00019008,2]
[374122371,1753213849478,-703.3,0.00019008,2]
[374122372,1753213849487,-460.0,0.00019008,2]
[374122373,1753213849497,-1386.55,0.00019008,2]
[374122374,1753213849506,-552.38,0.00019008,2]
[374122375,1753213849516,-460.0,0.00019008,2]
[374122376,1753213849525,-460.0,0.00019008,2]
[374122377,1753213849535,-460.0,0.00019008,2]
[374122378,1753213849545,-318.58,0.00019008,2]
[374122379,1753213849555,-460.0,0.00019008,2]
[374122380,1753213849565,-460.0,0.00019008,2]
[374122381,1753213849575,-460.0,0.00019009,2]
[374122382,1753213849584,-460.0,0.00019009,2]
[374122383,1753213849594,-460.0,0.00019009,2]
[374122384,1753213849604,-460.0,0.00019009,2]
[374122385,1753213849614,-460.0,0.00019009,2]
[374122386,1753213849624,-460.0,0.00019009,2]
[374122387,1753213849633,-460.0,0.00019009,2]
[374122388,1753213849643,-460.0,0.00019009,2]
[374122389,1753213849654,-346.26,0.00019009,2]
[374122390,1753213849664,-831.12,0.00019009,2]
[374122391,1753213849674,-1215.2,0.0001901,2]
[374122392,1753213849683,-1288.79,0.0001901,2]
[374122393,1753213849693,-1247.68,0.0001901,2]
[374122394,1753213849706,-460.0,0.0001901,2]
[374122395,1753213849716,-1243.93,0.00019011,2]
[374122396,1753213849725,-780.38,0.00019011,2]
[374122397,1753213849735,-460.0,0.00019011,2]
[374122398,1753213849744,-642.18,0.00019011,2]
[374122399,1753213849754,-460.0,0.00019011,2]
[374122400,1753213849763,-943.84,0.00019011,2]
[374122401,1753213849773,-214.6393183,0.00019039,2]
[374122402,1753213849783,-160.0,0.00019039,2]
[374122403,1753213849792,-839.90542673,0.00019039,2]
[374122404,1753213849802,-476.60259688,0.00019039,2]
[374122405,1753213849812,-215.80012421,0.00019039,2]
[374122406,1753213849821,-160.0,0.00019039,2]
[374122407,1753213849831,-378.26000652,0.0001904,2]
[374122408,1753213849841,-12619.94447631,0.0001904,2]
[374122409,1753213849851,-2980.03897535,0.00019072,2]
[374122410,1753213849861,-170.70320484,0.00019078,2]
[374122411,1753213849870,-207.78944833,0.00019099,2]
[374122412,1753213849879,-2000.0,0.00019164,2]
[374122413,1753213849889,-1530.6011952,0.00019164,2]
[374122414,1753213849899,-666.0,0.00019178,2]
[374122415,1753213849913,-3357.5976194,0.00019178,2]
[374122416,1753213849923,-500.0,0.000192,2]
[374122417,1753213849932,-500.0,0.000192,2]
[374122418,1753213849941,-500.0,0.00019237,2]
[374122419,1753213849956,-1500.0,0.00019237,2]
[374122420,1753213849966,-2500.0,0.00019264,2]
[374122421,1753213849975,-1679.28953629,0.00019264,2]
[374122422,1753213849986,-1096.09,0.00019281,2]
[374122423,1753213849996,-460.0,0.00019282,2]
[374122424,1753213850006,-460.0,0.00019282,2]
[374122425,1753213850016,-1184.94,0.00019282,2]
[374122426,1753213850025,-460.0,0.00019282,2]
[374122427,1753213850034,-1196.81,0.00019282,2]
[374122428,1753213850044,-460.0,0.00019282,2]
[374122429,1753213850053,-2821.8,0.00019282,2]
[374122430,1753213850063,-703.3,0.00019282,2]
[374122431,1753213850072,-460.0,0.00019282,2]
[374122432,1753213850081,-1386.55,0.00019282,2]
[374122433,1753213850091,-460.0,0.00019282,2]
[374122434,1753213850101,-460.0,0.00019282,2]
[374122435,1753213850110,-460.0,0.00019282,2]
[374122436,1753213850119,-460.0,0.00019282,2]
[374122437,1753213850129,-460.0,0.00019282,2]
[374122438,1753213850138,-460.0,0.00019283,2]
[374122439,1753213850148,-460.0,0.00019283,2]
[374122440,1753213850157,-460.0,0.00019283,2]
[374122441,1753213850168,-460.0,0.00019283,2]
[374122442,1753213850177,-460.0,0.00019283,2]
[374122443,1753213850187,-460.0,0.00019283,2]
[374122444,1753213850196,-460.0,0.00019283,2]
[374122445,1753213850207,-460.0,0.00019283,2]
[374122446,1753213850217,-831.12,0.00019283,2]
[374122447,1753213850227,-1215.2,0.00019284,2]
[374122448,1753213850236,-1288.79,0.00019284,2]
[374122449,1753213850246,-1247.68,0.00019284,2]
[374122450,1753213850256,-460.0,0.00019284,2]
[374122451,1753213850265,-1243.93,0.00019285,2]
[374122452,1753213850275,-780.38,0.00019285,2]
[374122453,1753213850285,-460.0,0.00019285,2]
[374122454,1753213850294,-642.18,0.00019285,2]
[374122455,1753213850304,-390.32,0.00019285,2]
[374122456,1753213850314,-943.84,0.00019285,2]
[374122457,1753213850324,-92133.56902378,0.00019329,2]
[374122458,1753213850333,-360.0,0.00019346,2]
[374122459,1753213850343,-307.98289009,0.00019373,2]
[374122460,1753213850352,-500.0,0.00019373,2]
[374122461,1753213850361,-500.16605622,0.00019373,2]
[374122462,1753213850371,-500.0,0.00019373,2]
[374122463,1753213850381,-280.18916198,0.00019373,2]
[374122464,1753213850390,-274.06147548,0.00019373,2]
[374122465,1753213850399,-500.0,0.00019373,2]
[374122466,1753213850409,-163.68174743,0.00019373,2]
[374122467,1753213850418,-153.87587516,0.00019373,2]
[374122468,1753213850428,-503.20157742,0.00019373,2]
[374122469,1753213850438,-500.0,0.00019373,2]
[374122470,1753213850449,-158.24456205,0.00019373,2]
[374122471,1753213850461,-500.0,0.00019373,2]
[374122472,1753213850472,-500.0,0.00019373,2]
[374122473,1753213850482,-500.7334149,0.00019373,2]
[374122474,1753213850492,-500.0,0.00019373,2]
[374122475,1753213850502,-500.0,0.00019373,2]
[374122476,1753213850512,-500.0,0.00019373,2]
[374122477,1753213850523,-384.59957403,0.00019373,2]
[374122478,1753213850532,-500.0,0.00019373,2]
[374122479,1753213850542,-500.0,0.00019373,2]
[374122480,1753213850551,-500.0,0.00019373,2]
[374122481,1753213850561,-509.72710749,0.00019373,2]
[374122482,1753213850570,-500.0,0.00019373,2]
[374122483,1753213850580,-501.29806592,0.00019373,2]
[374122484,1753213850590,-500.0,0.00019373,2]
[374122485,1753213850600,-500.86190192,0.00019373,2]
[374122486,1753213850610,-500.0,0.00019373,2]
[374122487,1753213850620,-500.0,0.00019373,2]
[374122488,1753213850629,-500.0,0.00019373,2]
[374122489,1753213850639,-500.0,0.00019373,2]
[374122490,1753213850649,-500.0,0.00019373,2]
[374122491,1753213850659,-151.24943892,0.00019373,2]
[374122492,1753213850671,-500.0,0.00019373,2]
[374122493,1753213850681,-500.0,0.00019373,2]
[374122494,1753213850690,-2980.03897535,0.00019383,2]
[374122495,1753213850700,-519.15066036,0.000194,2]
[374122496,1753213850711,-948.88989156,0.00019487,2]
[374122497,1753213850720,-1096.09,0.00019555,2]
[374122498,1753213850730,-460.0,0.00019556,2]
[374122499,1753213850739,-422.56772743,0.00019556,2]
[374122500,1753213850748,-1184.94,0.00019556,2]
[374122501,1753213850758,-460.0,0.00019556,2]
[374122502,1753213850767,-1196.81,0.00019556,2]
[374122503,1753213850777,-460.0,0.00019556,2]
[374122504,1753213850786,-2821.8,0.00019556,2]
[374122505,1753213850796,-703.3,0.00019556,2]
[374122506,1753213850805,-460.0,0.00019556,2]
[374122507,1753213850814,-1386.55,0.00019556,2]
[374122508,1753213850826,-460.0,0.00019556,2]
[374122509,1753213850835,-460.0,0.00019556,2]
[374122510,1753213850845,-460.0,0.00019556,2]
[374122511,1753213850854,-460.0,0.00019556,2]
[374122512,1753213850864,-460.0,0.00019556,2]
[374122513,1753213850873,-460.0,0.00019557,2]
[374122514,1753213850883,-460.0,0.00019557,2]
[374122515,1753213850893,-460.0,0.00019557,2]
[374122516,1753213850908,-239.01456655,0.00019557,2]
[374122517,1753213850918,-460.0,0.00019557,2]
[374122518,1753213850928,-460.0,0.00019557,2]
[374122519,1753213850938,-386.19,0.00019557,2]
[374122520,1753213850954,-460.0,0.00019557,2]
[374122521,1753213850964,-831.12,0.00019557,2]
[374122522,1753213850974,-1215.2,0.00019558,2]
[374122523,1753213850984,-1288.79,0.00019558,2]
[374122524,1753213850995,-1247.68,0.00019558,2]
[374122525,1753213851006,-460.0,0.00019558,2]
[374122526,1753213851016,-1243.93,0.00019559,2]
[374122527,1753213851027,-780.38,0.00019559,2]
[374122528,1753213851137,-460.0,0.00019559,2]
[374122529,1753213851148,-642.18,0.00019559,2]
[374122530,1753213851158,-943.84,0.00019559,2]
[374122531,1753213851168,-2980.03897535,0.00019693,2]
[374122532,1753213851177,-1000.0,0.00019748,2]
[374122533,1753213851186,-500.0,0.00019793,2]
[374122534,1753213851195,-500.54494054,0.00019793,2]
[374122535,1753213851206,-2000.0,0.00019812,2]
[374122536,1753213851215,-1096.09,0.00019829,2]
[374122537,1753213851225,-429.87,0.0001983,2]
[374122538,1753213851234,-1184.94,0.0001983,2]
[374122539,1753213851244,-460.0,0.0001983,2]
[374122540,1753213851253,-1196.81,0.0001983,2]
[374122541,1753213851262,-460.0,0.0001983,2]
[374122542,1753213851272,-2821.8,0.0001983,2]
[374122543,1753213851281,-703.3,0.0001983,2]
[374122544,1753213851290,-460.0,0.0001983,2]
[374122545,1753213851301,-1386.55,0.0001983,2]
[374122546,1753213851311,-460.0,0.0001983,2]
[374122547,1753213851320,-460.0,0.0001983,2]
[374122548,1753213851329,-460.0,0.0001983,2]
[374122549,1753213851338,-460.0,0.0001983,2]
[374122550,1753213851348,-460.0,0.0001983,2]
[374122551,1753213851357,-201.7,0.00019831,2]
[374122552,1753213851366,-460.0,0.00019831,2]
[374122553,1753213851375,-460.0,0.00019831,2]